bitfinex-derivatives/quotes_ETHF0:USTF0_20260119
["timestamp","ask_amount","ask_price","bid_price","bid_amount"]
[1768798759781,1.11627633,3214.6,3213.4,0.00466316]
[1768798759782,1.01233875,3214.2,3213.4,0.00466316]
[1768798759987,1.11627633,3214.6,3213.4,0.00466316]
[1768798760489,2.12893756,3214.6,3213.4,0.00466316]
[1768798761590,1.11627633,3214.5,3213.4,0.00466316]
[1768798770397,2.12963512,3214.5,3213.4,3.29198597]
[1768798770594,1.01335879,3214.4,3213.4,3.29198597]
[1768798770794,1.01335879,3214.3,3213.4,3.29198597]
[1768798770995,1.01335879,3214.2,3213.4,3.29198597]
[1768798771195,1.01335879,3214.1,3213.4,3.29198597]
[1768798771396,1.11627633,3214.5,3213.4,3.29198597]
[1768798776294,6.09868546,3214.5,3213.4,0.00466316]
[1768798776498,2.12981173,3214.4,3213.4,0.00466316]
[1768798780505,2.66678111,3214.1,3213.0,0.00298587]
[1768798780806,1.0135354,3214.0,3213.0,0.00298587]
[1768798781008,1.0135354,3213.9,3213.0,0.00298587]
[1768798781199,1.0135354,3213.8,3213.0,0.00298587]
[1768798781400,1.0135354,3213.7,3213.0,3.37997883]
[1768798781610,1.11627633,3214.1,3213.0,3.37997883]
[1768798782103,1.11627633,3214.2,3213.0,3.37997883]
[1768798782498,2.12942846,3214.1,3213.0,3.37997883]
[1768798782700,1.01315213,3214.0,3213.0,3.37997883]
[1768798782999,1.11627633,3214.3,3213.0,3.37997883]
[1768798785401,4.60695086,3214.3,3213.0,0.00298587]
[1768798785705,1.01292505,3214.2,3213.0,0.00298587]
[1768798785901,1.01292505,3214.1,3213.0,0.00298587]
[1768798786110,1.01292505,3214.0,3213.0,0.00298587]
[1768798786303,4.60695086,3214.3,3213.0,0.00298587]
[1768798786304,3.49067453,3214.3,3213.0,0.00298587]
[1768798786498,1.01291958,3214.2,3213.0,0.00298587]
[1768798786806,1.01291958,3214.1,3213.0,0.00298587]
[1768798787009,1.01291958,3214.0,3213.0,0.00298587]
[1768798787211,3.49067453,3214.3,3213.0,0.00298587]
[1768798787401,1.01293001,3214.2,3213.0,0.00298587]
[1768798787601,1.01293001,3214.1,3213.0,0.00298587]
[1768798787802,1.01293001,3214.0,3213.0,0.00298587]
[1768798788002,3.49067453,3214.3,3213.0,0.00298587]
[1768798788206,1.01291449,3214.2,3213.0,0.00298587]
[1768798788408,1.01291449,3214.1,3213.0,0.00298587]
[1768798788612,1.01291449,3214.0,3213.0,0.00298587]
[1768798788809,3.49067453,3214.3,3213.0,0.00298587]
[1768798789003,1.01414309,3214.2,3213.0,0.00298587]
[1768798789298,1.01414309,3214.1,3213.0,0.00298587]
[1768798789501,1.01414309,3214.0,3213.0,0.00298587]
[1768798789698,3.49067453,3214.3,3213.0,0.00298587]
[1768798789903,1.01416818,3214.2,3213.0,0.00298587]
[1768798790100,1.01416818,3214.1,3213.0,0.00298587]
[1768798790312,1.01416818,3214.0,3213.0,0.00298587]
[1768798790513,3.49067453,3214.3,3213.0,0.00298587]
[1768798790810,1.01419838,3214.2,3213.0,0.00298587]
[1768798791115,1.01419838,3214.1,3213.0,0.00298587]
[1768798791313,1.01419838,3214.0,3213.0,0.00298587]
[1768798791613,4.60695086,3214.3,3213.0,0.00298587]
[1768798791911,1.01423515,3214.2,3213.0,0.00298587]
[1768798792112,1.01423515,3214.1,3213.0,0.00298587]
[1768798792306,1.01423515,3214.0,3213.0,0.00298587]
[1768798792505,4.60695086,3214.3,3213.0,0.00298587]
[1768798792705,1.01423937,3214.2,3213.0,0.00298587]
[1768798792905,1.01423937,3214.1,3213.0,0.00298587]
[1768798793103,1.11627633,3214.1,3213.0,0.00298587]
[1768798793706,1.01423937,3214.0,3213.0,0.00298587]
[1768798793904,1.01423937,3213.9,3213.0,0.00298587]
[1768798794105,1.01423937,3213.8,3213.0,0.00298587]
[1768798794305,1.11627633,3214.2,3213.0,0.00298587]
[1768798794505,2.13040084,3214.2,3213.0,0.00298587]
[1768798800619,5.48432587,3214.2,3213.0,0.00298587]
[1768798800921,1.27189633,3214.7,3213.3,1.55050478]
[1768798801212,1.01389763,3214.6,3213.3,1.55050478]
[1768798801420,1.01389763,3214.5,3213.4,1.831]
[1768798801624,1.01389763,3214.4,3213.4,1.831]
[1768798801821,3.35392503,3214.7,3213.4,1.831]
[1768798802017,1.01369908,3214.6,3213.4,1.831]
[1768798802216,1.01369908,3214.5,3213.4,1.831]
[1768798802415,1.01369908,3214.4,3213.4,1.831]
[1768798802616,3.35392503,3214.7,3213.4,1.831]
[1768798802812,1.01356308,3214.6,3213.4,1.831]
[1768798803113,1.01356308,3214.5,3213.4,1.831]
[1768798803418,3.35392503,3214.7,3213.2,1.831]
[1768798803617,1.01343095,3214.6,3213.2,1.831]
[1768798803811,1.01343095,3214.5,3213.1,3.54579779]
[1768798804011,3.35392503,3214.7,3213.1,3.54579779]
[1768798804214,1.01343095,3214.6,3213.2,1.788]
[1768798804420,2.56393573,3214.5,3213.2,1.831]
[1768798804618,1.01343095,3214.4,3213.1,5.37679779]
[1768798804819,1.01343095,3214.3,3213.1,5.37679779]
[1768798805022,3.35392503,3214.6,3213.1,5.37679779]
[1768798805208,1.0133368,3214.5,3213.1,5.37679779]
[1768798805413,1.0133368,3214.4,3213.1,5.37679779]
[1768798805621,3.35392503,3214.6,3213.1,5.37679779]
[1768798805822,1.01327996,3214.5,3213.1,5.37679779]
[1768798806024,1.01327996,3214.4,3213.2,3.54579779]
[1768798806220,3.35392503,3214.6,3213.2,3.54579779]
[1768798806415,1.01320942,3214.5,3213.2,3.54579779]
[1768798806614,1.01320942,3214.4,3213.2,3.54579779]
[1768798806816,2.66678111,3214.9,3213.2,3.54579779]
[1768798807015,1.01320286,3214.8,3213.2,3.54579779]
[1768798807223,1.01320286,3214.7,3213.2,3.54579779]
[1768798807414,1.01320286,3214.6,3213.2,3.54579779]
[1768798807615,1.01320286,3214.5,3213.2,3.54579779]
[1768798807816,1.01320286,3214.4,3213.3,1.831]
[1768798808023,1.55050478,3214.6,3213.3,1.831]
[1768798808223,4.36705517,3214.5,3213.2,1.831]
[1768798808425,1.01313014,3214.4,3213.2,1.831]
[1768798808619,3.35392503,3214.5,3213.2,1.831]
[1768798808815,4.36699546,3214.4,3213.0,1.83398587]
[1768798809020,1.01307641,3214.3,3213.0,1.83398587]
[1768798809213,3.35392503,3214.4,3213.0,1.83398587]
[1768798809417,1.01305367,3214.3,3213.0,1.83398587]
[1768798809620,3.35392503,3214.4,3213.0,1.83398587]
[1768798809821,1.01305383,3214.3,3213.0,1.83398587]
[1768798810020,3.35392503,3214.4,3213.0,1.83398587]
[1768798810218,1.01305342,3214.3,3213.0,1.83398587]
[1768798810421,3.35392503,3214.4,3213.0,1.83398587]
[1768798810716,1.01302746,3214.3,3213.0,1.83398587]
[1768798811026,1.55050757,3214.3,3213.0,1.83398587]
[1768798811623,1.01308069,3214.2,3213.0,1.83398587]
[1768798811824,1.55050757,3214.3,3213.0,1.83398587]
[1768798812029,1.01308052,3214.2,3213.0,1.83398587]
[1768798812229,1.55050757,3214.3,3213.0,1.83398587]
[1768798812420,1.01313109,3214.2,3213.0,1.83398587]
[1768798812628,1.55050757,3214.3,3213.0,1.83398587]
[1768798812824,1.01313109,3214.2,3213.0,0.00298587]
[1768798813123,1.55050757,3214.3,3213.0,1.83298587]
[1768798813325,1.01310039,3214.2,3213.1,3.54579779]
[1768798813526,1.55050757,3214.3,3213.1,3.54579779]
[1768798813720,1.0131228,3214.2,3213.1,3.54579779]
[1768798813919,1.55050757,3214.3,3213.1,3.54579779]
[1768798814227,1.0131228,3214.2,3213.1,3.54579779]
[1768798814420,1.55050757,3214.3,3213.1,3.54579779]
[1768798814720,1.01311745,3214.2,3213.1,3.54579779]
[1768798814920,1.55050757,3214.3,3213.1,3.54579779]
[1768798815225,1.01311761,3214.2,3213.1,3.54579779]
[1768798815429,1.55050757,3214.3,3213.1,3.54579779]
[1768798815725,1.01311603,3214.2,3213.1,3.54579779]
[1768798816026,1.55050757,3214.3,3213.1,3.54579779]
[1768798816229,1.01311603,3214.2,3213.1,5.37579779]
[1768798816528,1.55050757,3214.3,3213.1,5.37579779]
[1768798816824,1.01311573,3214.2,3213.1,5.37579779]
[1768798817026,1.55050757,3214.3,3213.1,5.37579779]
[1768798817227,1.01311556,3214.2,3213.1,5.37579779]
[1768798817430,1.55050757,3214.3,3213.1,5.37579779]
[1768798817730,1.01311787,3214.2,3213.1,5.37579779]
[1768798818028,1.55050757,3214.3,3213.1,5.37579779]
[1768798818328,1.01311627,3214.2,3213.1,5.37579779]
[1768798818523,1.55050757,3214.2,3213.1,5.37579779]
[1768798822626,1.11627633,3214.6,3213.1,5.37579779]
[1768798822831,1.55050757,3214.2,3213.1,5.37579779]
[1768798823032,1.55050757,3214.2,3213.1,3.54579779]
[1768798823330,1.55050757,3214.2,3213.2,1.83]
[1768798827136,1.01442273,3214.1,3213.2,1.83]
[1768798827334,1.55050757,3214.2,3213.2,1.83]
[1768798827637,1.0144476,3214.1,3213.2,1.83]
[1768798827828,1.55050757,3214.2,3213.2,1.83]
[1768798828035,1.01444584,3214.1,3213.2,1.83]
[1768798828334,1.55050757,3214.2,3213.2,1.83]
[1768798828535,1.01472829,3214.1,3213.2,1.83]
[1768798828737,1.55050757,3214.2,3213.2,1.83]
[1768798828939,1.01472022,3214.1,3213.2,1.83]
[1768798829237,1.55050757,3214.2,3213.2,1.83]
[1768798829535,1.01514051,3214.1,3213.2,1.83]
[1768798829739,1.55050757,3214.2,3213.2,1.83]
[1768798829942,1.01513676,3214.1,3213.2,1.83]
[1768798830240,1.55050757,3214.2,3213.2,1.83]
[1768798830542,1.01514462,3214.1,3213.2,1.55050757]
[1768798830740,1.11627633,3214.5,3213.3,1.829]
[1768798830928,1.55050757,3214.4,3213.3,1.829]
[1768798831130,1.01514113,3214.3,3213.3,1.829]
[1768798831336,1.01514113,3214.2,3213.3,1.829]
[1768798831541,1.01514113,3214.1,3213.3,1.829]
[1768798831734,1.55050757,3214.4,3213.3,1.829]
[1768798831936,1.01518405,3214.3,3213.3,1.829]
[1768798832140,1.01518405,3214.2,3213.3,1.829]
[1768798832440,1.01518405,3214.1,3213.3,1.829]
[1768798832742,1.55050757,3214.4,3213.3,5.2486947]
[1768798832934,1.01523248,3214.3,3213.3,5.2486947]
[1768798833134,1.01523248,3214.2,3213.3,5.2486947]
[1768798833334,1.55050757,3214.4,3213.3,5.2486947]
[1768798833335,1.01523248,3214.1,3213.3,5.2486947]
[1768798833531,1.11627633,3214.5,3213.3,5.2486947]
[1768798833736,2.13155649,3214.5,3213.4,3.4196947]
[1768798833937,1.01528016,3214.4,3213.4,3.4196947]
[1768798834135,1.01528016,3214.3,3213.4,3.4196947]
[1768798834442,1.01528016,3214.2,3213.4,3.4196947]
[1768798834645,1.01528016,3214.1,3213.4,3.4196947]
[1768798834836,1.11627633,3214.5,3213.4,3.4196947]
[1768798835438,1.11627633,3214.5,3213.4,4.97020227]
[1768798836140,2.68977111,3214.6,3213.8,4.97020227]
[1768798836141,1.01535661,3214.4,3213.8,4.97020227]
[1768798836340,1.11627633,3214.7,3213.8,3.4196947]
[1768798837238,1.11627633,3214.8,3213.8,3.4196947]
[1768798837639,1.11627633,3214.9,3214.0,1.55050757]
[1768798837834,2.6667839,3215.3,3214.1,1.829]
[1768798838236,1.55050757,3215.3,3214.1,1.829]
[1768798840335,3.41704193,3215.4,3214.1,1.829]
[1768798840535,1.55050757,3215.2,3214.1,1.829]
[1768798841340,1.55050757,3215.4,3214.1,6.46935203]
[1768798842447,1.55050757,3215.4,3214.2,3.08984446]
[1768798842649,1.55050757,3215.5,3214.2,3.08984446]
[1768798844541,1.55050757,3215.3,3214.2,3.08984446]
[1768798844739,1.11627633,3215.6,3214.2,3.08984446]
[1768798845049,1.55050757,3215.6,3214.3,3.37950757]
[1768798846846,1.55050757,3215.4,3214.2,3.08984446]
[1768798847042,1.55050757,3215.4,3214.3,1.828]
[1768798847244,1.55050757,3215.2,3214.4,1.828]
[1768798847943,1.55050757,3215.2,3214.3,1.828]
[1768798849243,1.55050757,3215.2,3213.8,4.79601203]
[1768798849543,1.55050757,3215.2,3213.9,1.828]
[1768798851552,1.55050757,3215.2,3213.8,4.79601203]
[1768798851553,4.96160673,3214.9,3213.4,3.08984446]
[1768798851945,4.96160673,3214.9,3213.5,1.828]
[1768798852149,4.96160673,3214.9,3213.5,3.37850757]
[1768798852553,4.96160673,3214.9,3213.6,1.828]
[1768798852757,3.41109916,3214.9,3213.7,1.55050757]
[1768798852946,1.55050757,3215.1,3213.7,1.55050757]
[1768798853146,1.0043979,3215.0,3213.7,1.55050757]
[1768798853345,3.50409572,3215.0,3213.7,1.55050757]
[1768798853557,3.50409572,3215.0,3213.6,1.55050757]
[1768798856155,1.11627633,3215.4,3214.0,1.55050757]
[1768798856462,6.05938017,3215.3,3214.0,1.55050757]
[1768798856662,1.00477688,3215.2,3214.0,1.55050757]
[1768798857363,1.00477688,3215.2,3213.8,1.55050757]
[1768798857780,1.00477688,3215.2,3214.0,1.55050757]
[1768798857975,1.00477688,3215.2,3213.9,1.55050757]
[1768798859075,1.00477688,3215.2,3214.1,1.55050757]
[1768798859570,1.00477688,3215.2,3214.6,1.55050757]
[1768798859874,4.62037205,3215.7,3214.6,1.55050757]
[1768798860074,1.0050744,3215.6,3214.6,1.55050757]
[1768798860273,1.0050744,3215.5,3214.4,1.55050757]
[1768798860474,1.0050744,3215.4,3214.4,1.55050757]
[1768798860676,1.0050744,3215.3,3214.4,1.55050757]
[1768798860870,4.62037205,3215.7,3214.4,1.55050757]
[1768798861071,1.00518605,3215.6,3214.4,1.55050757]
[1768798861268,0.00466316,3215.4,3214.4,1.55050757]
[1768798861586,1.00518605,3215.3,3214.4,1.55050757]
[1768798862774,0.00466316,3215.4,3214.4,1.55050757]
[1768798862975,0.00466316,3215.4,3214.1,5.06203664]
[1768798863175,0.00466316,3215.4,3214.1,3.51152907]
[1768798863378,1.00565553,3215.3,3214.1,3.51152907]
[1768798863578,0.00466316,3215.4,3214.1,3.51152907]
[1768798863783,1.00567553,3215.3,3214.1,5.06203664]
[1768798863976,0.00466316,3215.4,3214.1,5.06203664]
[1768798864178,1.00567553,3215.3,3214.1,5.06203664]
[1768798864485,0.00466316,3215.4,3214.1,5.06203664]
[1768798864680,1.0059335,3215.3,3214.1,5.06203664]
[1768798864887,0.00466316,3215.4,3214.1,5.06203664]
[1768798865092,1.0059335,3215.3,3214.1,5.06203664]
[1768798865377,1.00625587,3215.2,3214.1,5.06203664]
[1768798865580,0.00466316,3215.4,3214.1,5.06203664]
[1768798865880,1.00626013,3215.3,3214.1,5.06203664]
[1768798866080,1.00626013,3215.2,3214.3,1.55050757]
[1768798866282,0.00466316,3215.4,3214.3,1.55050757]
[1768798866469,1.00652769,3215.3,3214.3,1.55050757]
[1768798866675,1.00652769,3215.2,3214.3,1.55050757]
[1768798866980,0.00466316,3215.4,3214.3,1.55050757]
[1768798867172,1.00652794,3215.3,3214.3,1.55050757]
[1768798867371,1.00652794,3215.2,3214.3,1.55050757]
[1768798867572,0.00466316,3215.4,3214.2,1.55050757]
[1768798867773,1.00672323,3215.3,3214.2,1.55050757]
[1768798867973,1.00672323,3215.2,3214.1,5.33852907]
[1768798868173,0.00466316,3215.4,3214.1,5.33852907]
[1768798868380,1.00674973,3215.3,3214.1,5.33852907]
[1768798868584,1.00674973,3215.2,3214.1,5.33852907]
[1768798868880,0.00466316,3215.4,3214.1,5.33852907]
[1768798869176,1.00672107,3215.3,3214.1,5.33852907]
[1768798869379,1.00672107,3215.2,3214.1,5.33852907]
[1768798869584,0.00466316,3215.4,3214.1,5.33852907]
[1768798869781,1.00671673,3215.3,3214.1,5.33852907]
[1768798869981,1.00671673,3215.2,3214.1,5.33852907]
[1768798870191,0.00466316,3215.4,3214.1,5.33852907]
[1768798870378,1.0067122,3215.3,3214.1,5.33852907]
[1768798870581,1.0067122,3215.2,3214.1,5.33852907]
[1768798870777,0.00466316,3215.4,3214.1,5.33852907]
[1768798870986,1.00671832,3215.3,3214.1,5.33852907]
[1768798871184,1.00671832,3215.2,3214.1,5.33852907]
[1768798871385,0.00466316,3215.4,3214.1,5.33852907]
[1768798871587,1.00671763,3215.3,3214.1,5.33852907]
[1768798871779,1.00671763,3215.2,3214.1,5.33852907]
[1768798871978,0.00466316,3215.4,3214.1,5.33852907]
[1768798872183,1.00671843,3215.3,3214.1,5.33852907]
[1768798872379,1.00671843,3215.2,3214.1,5.33852907]
[1768798872587,0.00466316,3215.4,3214.1,5.33852907]
[1768798872979,1.00670153,3215.3,3214.1,5.33852907]
[1768798873185,0.00466316,3215.4,3214.1,5.33852907]
[1768798873384,1.00668046,3215.3,3214.1,5.33852907]
[1768798873688,0.00466316,3215.4,3214.1,5.33852907]
[1768798873890,1.00668046,3215.3,3214.1,5.33852907]
[1768798874090,0.00466316,3215.4,3214.1,5.33852907]
[1768798874278,1.00668046,3215.3,3214.1,5.33852907]
[1768798874482,0.00466316,3215.4,3214.1,5.33852907]
[1768798874685,1.00666034,3215.3,3214.1,5.33852907]
[1768798874892,0.00466316,3215.4,3214.1,5.33852907]
[1768798875091,1.00666034,3215.3,3214.1,5.33852907]
[1768798875284,0.00466316,3215.4,3214.1,5.33852907]
[1768798875486,1.00671655,3215.3,3214.1,5.33852907]
[1768798875784,0.00466316,3215.4,3214.1,5.33852907]
[1768798875984,1.00672416,3215.3,3214.1,5.33852907]
[1768798876185,0.00466316,3215.4,3214.1,5.33852907]
[1768798876485,1.00673841,3215.3,3214.2,1.827]
[1768798876791,0.00466316,3215.4,3214.2,1.827]
[1768798876984,1.00678683,3215.3,3214.2,1.827]
[1768798877189,0.00466316,3215.4,3214.2,1.827]
[1768798877387,3.50409572,3215.2,3213.7,3.51152907]
[1768798877586,1.00684423,3215.1,3213.8,1.827]
[1768798879087,1.00684423,3215.1,3213.9,3.51152907]
[1768798879295,1.00684423,3215.0,3213.9,3.51152907]
[1768798879498,1.00684423,3214.9,3213.9,3.51152907]
[1768798879699,1.00761694,3214.8,3213.5,3.51152907]
[1768798879996,1.00761694,3214.7,3213.6,1.827]
[1768798880290,1.00761694,3214.6,3213.5,3.51152907]
[1768798880490,1.00761694,3214.5,3213.1,3.51152907]
[1768798880696,3.50409572,3214.8,3213.2,1.827]
[1768798880897,1.00750331,3214.7,3213.2,1.827]
[1768798881096,3.50409572,3214.8,3213.2,1.827]
[1768798881097,1.00750331,3214.6,3213.2,1.827]
[1768798881298,1.00750331,3214.5,3213.2,1.827]
[1768798881490,3.50409572,3214.8,3213.2,5.33852907]
[1768798881690,1.00724013,3214.7,3213.2,5.33852907]
[1768798881891,1.00724013,3214.6,3213.2,5.33852907]
[1768798882091,1.00724013,3214.5,3213.3,3.51152907]
[1768798882293,3.50409572,3214.8,3213.3,3.51152907]
[1768798882491,1.00706735,3214.7,3213.3,3.51152907]
[1768798882691,1.11627633,3215.1,3213.3,3.51152907]
[1768798882892,2.12332185,3215.1,3213.3,3.51152907]
[1768798883094,2.12332185,3215.1,3213.5,3.57300117]
[1768798884987,1.00704552,3215.0,3213.5,3.57300117]
[1768798885188,1.00704552,3214.9,3213.5,3.57300117]
[1768798885399,1.00704552,3214.8,3213.5,3.57300117]
[1768798885701,4.68970431,3215.2,3213.5,3.57300117]
[1768798885904,1.00688992,3215.1,3213.5,3.57300117]
[1768798886104,1.00688992,3215.0,3213.5,3.57300117]
[1768798886303,1.00688992,3214.9,3213.5,3.57300117]
[1768798886506,1.00688992,3214.8,3213.5,3.57300117]
[1768798886707,4.68970431,3215.2,3213.5,5.12231889]
[1768798886907,1.00684832,3215.1,3213.6,3.57300117]
[1768798887206,1.00684832,3215.0,3213.6,3.57300117]
[1768798887406,1.00684832,3214.9,3213.6,3.57300117]
[1768798887600,1.00684832,3214.8,3213.6,3.57300117]
[1768798887809,1.11627633,3215.3,3213.6,3.57300117]
[1768798887998,2.12308551,3215.2,3213.6,3.57300117]
[1768798888194,1.00680918,3215.1,3213.6,3.57300117]
[1768798888398,1.00680918,3215.0,3213.6,3.57300117]
[1768798888707,1.00680918,3214.9,3213.6,3.57300117]
[1768798888906,1.11627633,3215.3,3213.6,3.57300117]
[1768798889200,2.12305888,3215.3,3213.6,3.57300117]
[1768798889406,1.00678255,3215.2,3214.0,3.57300117]
[1768798889607,0.00466316,3215.4,3214.0,3.57300117]
[1768798889806,1.00670455,3215.3,3214.0,3.57300117]
[1768798890009,1.00670455,3215.2,3214.0,3.57300117]
[1768798890208,0.00466316,3215.4,3214.0,3.57300117]
[1768798890408,1.00674979,3215.3,3214.1,1.826]
[1768798890597,1.00674979,3215.2,3214.1,1.826]
[1768798890799,0.00466316,3215.4,3214.2,1.826]
[1768798891009,1.00674995,3215.3,3214.2,1.826]
[1768798891201,1.00674995,3215.2,3214.2,1.826]
[1768798891402,1.00674995,3215.1,3214.2,1.826]
[1768798891601,0.00466316,3215.4,3214.2,1.826]
[1768798891803,1.00676608,3215.3,3214.2,1.826]
[1768798892003,1.00676608,3215.2,3214.2,1.826]
[1768798892204,1.00676608,3215.1,3214.2,1.826]
[1768798892408,0.00466316,3215.4,3214.2,1.826]
[1768798892607,1.00678981,3215.3,3214.2,1.826]
[1768798892810,1.00678981,3215.2,3214.2,1.826]
[1768798893013,1.00678981,3215.1,3214.2,1.826]
[1768798893211,0.00466316,3215.4,3214.2,1.826]
[1768798893515,1.00686861,3215.3,3214.2,1.826]
[1768798893709,1.00686861,3215.2,3214.2,1.826]
[1768798894012,1.00686861,3215.1,3214.2,1.826]
[1768798894212,0.00466316,3215.4,3214.2,1.826]
[1768798894513,1.00689547,3215.3,3214.2,1.826]
[1768798894713,1.00689547,3215.2,3214.2,1.826]
[1768798895010,1.00689547,3215.1,3214.0,3.57300117]
[1768798895315,3.57809114,3215.4,3214.0,5.39900117]
[1768798895614,1.00692418,3215.3,3214.0,5.39900117]
[1768798895813,1.00692418,3215.2,3214.0,5.39900117]
[1768798896109,1.00692418,3215.1,3214.1,3.57300117]
[1768798896304,0.00466316,3215.4,3214.1,3.57300117]
[1768798896505,1.00694691,3215.3,3214.1,3.57300117]
[1768798896706,1.00694691,3215.2,3214.1,3.57300117]
[1768798896906,1.00694691,3215.1,3214.1,3.57300117]
[1768798897107,0.00466316,3215.4,3214.1,3.57300117]
[1768798897306,1.00694707,3215.3,3214.1,3.57300117]
[1768798897510,1.00694707,3215.2,3214.1,3.57300117]
[1768798897711,0.00466316,3215.4,3214.1,3.57300117]
[1768798899015,0.00466316,3215.4,3214.3,3.21348364]
[1768798903821,0.00466316,3215.4,3214.5,0.00466316]
[1768798919236,1.00778273,3215.3,3214.5,0.00466316]
[1768798919443,0.00466316,3215.4,3214.5,0.00466316]
[1768798919637,1.00778273,3215.3,3214.5,0.00466316]
[1768798919839,0.00466316,3215.4,3214.5,0.00466316]
[1768798920040,1.00778273,3215.3,3214.5,0.00466316]
[1768798920235,0.00466316,3215.4,3214.5,0.00466316]
[1768798920436,1.00782381,3215.3,3214.5,0.00466316]
[1768798920642,0.00466316,3215.4,3214.5,0.00466316]
[1768798920839,1.00782381,3215.3,3214.5,0.00466316]
[1768798921040,0.00466316,3215.4,3214.5,0.00466316]
[1768798921347,1.00782381,3215.3,3214.5,0.00466316]
[1768798921543,0.00466316,3215.4,3214.5,0.00466316]
[1768798921739,1.00790223,3215.3,3214.5,0.00466316]
[1768798921939,0.00466316,3215.4,3214.5,0.00466316]
[1768798922139,1.00790239,3215.3,3214.5,0.00466316]
[1768798922343,0.00466316,3215.4,3214.5,0.00466316]
[1768798922544,1.00799276,3215.3,3214.5,0.00466316]
[1768798922736,0.00466316,3215.4,3214.5,0.00466316]
[1768798922937,1.00799274,3215.3,3214.5,0.00466316]
[1768798923137,0.00466316,3215.4,3214.5,0.00466316]
[1768798923339,1.00799225,3215.3,3214.5,0.00466316]
[1768798923540,0.00466316,3215.4,3214.5,0.00466316]
[1768798923846,1.00809686,3215.3,3214.5,0.00466316]
[1768798924042,0.00466316,3215.4,3214.5,0.00466316]
[1768798924248,1.00809673,3215.3,3214.5,0.00466316]
[1768798924443,0.00466316,3215.4,3214.5,0.00466316]
[1768798924745,1.00821997,3215.3,3214.5,0.00466316]
[1768798925042,0.00466316,3215.4,3214.5,0.00466316]
[1768798925241,1.00821997,3215.3,3214.5,0.00466316]
[1768798925441,0.00466316,3215.4,3214.5,0.00466316]
[1768798925644,1.00837074,3215.3,3214.5,0.00466316]
[1768798925837,0.00466316,3215.4,3214.5,0.00466316]
[1768798926041,1.00837074,3215.3,3214.5,0.00466316]
[1768798926242,0.00466316,3215.4,3214.5,0.00466316]
[1768798926445,1.0085566,3215.3,3214.5,0.00466316]
[1768798926645,0.00466316,3215.4,3214.5,0.00466316]
[1768798926844,1.00855667,3215.3,3214.5,0.00466316]
[1768798927045,0.00466316,3215.4,3214.5,0.00466316]
[1768798927248,1.00855559,3215.3,3214.5,0.00466316]
[1768798927443,1.00855559,3215.2,3214.5,0.00466316]
[1768798927644,0.00466316,3215.4,3214.5,0.00466316]
[1768798927845,1.00880325,3215.3,3214.5,0.00466316]
[1768798928047,1.00880325,3215.2,3214.5,0.00466316]
[1768798928348,0.00466316,3215.4,3214.5,0.00466316]
[1768798928548,1.00882504,3215.3,3214.5,0.00466316]
[1768798928851,1.00882504,3215.2,3214.5,0.00466316]
[1768798929043,0.00466316,3215.4,3214.5,0.00466316]
[1768798929245,1.00882456,3215.3,3214.5,0.00466316]
[1768798929573,1.00882456,3215.2,3214.5,0.00466316]
[1768798929855,0.00466316,3215.4,3214.5,0.00466316]
[1768798930049,1.0088216,3215.3,3214.5,0.00466316]
[1768798930239,1.0088216,3215.2,3214.5,0.00466316]
[1768798930443,0.00466316,3215.4,3214.5,0.00466316]
[1768798930655,1.00881893,3215.3,3214.5,0.00466316]
[1768798930952,1.00881893,3215.2,3214.5,0.00466316]
[1768798931153,0.00466316,3215.4,3214.5,0.00466316]
[1768798931353,1.00880742,3215.3,3214.5,0.00466316]
[1768798931555,1.00880742,3215.2,3214.5,0.00466316]
[1768798931756,0.00466316,3215.4,3214.5,0.00466316]
[1768798931955,1.00881624,3215.3,3214.5,0.00466316]
[1768798932157,1.00881624,3215.2,3214.5,0.00466316]
[1768798932456,0.00466316,3215.4,3214.5,0.00466316]
[1768798932656,1.00881351,3215.3,3214.5,0.00466316]
[1768798932843,1.00881351,3215.2,3214.5,0.00466316]
[1768798933047,0.00466316,3215.4,3214.5,0.00466316]
[1768798933360,1.00881361,3215.3,3214.5,0.00466316]
[1768798933555,1.00881361,3215.2,3214.5,0.00466316]
[1768798933756,0.00466316,3215.4,3214.5,0.00466316]
[1768798933953,1.00887017,3215.3,3214.5,0.00466316]
[1768798934259,1.00887017,3215.2,3214.5,0.00466316]
[1768798934464,0.00466316,3215.4,3214.5,0.00466316]
[1768798934761,1.00893755,3215.3,3214.5,0.00466316]
[1768798934954,1.00893755,3215.2,3214.5,0.00466316]
[1768798935152,0.00466316,3215.4,3214.5,0.00466316]
[1768798935351,1.0090153,3215.3,3214.5,0.00466316]
[1768798935551,0.00466316,3215.4,3214.5,0.00466316]
[1768798935552,1.0090153,3215.2,3214.5,0.00466316]
[1768798935749,0.00466316,3215.4,3214.5,0.00466316]
[1768798935949,1.00902235,3215.3,3214.5,0.00466316]
[1768798936154,1.00902235,3215.2,3214.5,0.00466316]
[1768798936358,0.00466316,3215.4,3214.5,0.00466316]
[1768798936566,1.00913928,3215.3,3214.5,0.00466316]
[1768798936761,1.00913928,3215.2,3214.5,0.00466316]
[1768798936954,0.00466316,3215.4,3214.5,0.00466316]
[1768798937262,1.00913912,3215.3,3214.5,0.00466316]
[1768798937458,1.00913912,3215.2,3214.5,1.55377487]
[1768798937661,0.00466316,3215.4,3214.5,1.55377487]
[1768798937857,1.00941178,3215.3,3214.5,0.00466316]
[1768798938054,1.00941178,3215.2,3214.5,1.55377487]
[1768798938254,0.00466316,3215.4,3214.5,1.55377487]
[1768798938453,1.0094119,3215.3,3214.5,1.55377487]
[1768798938759,1.0094119,3215.2,3214.5,1.55377487]
[1768798938962,0.00466316,3215.4,3214.5,1.55377487]
[1768798939163,1.00961627,3215.3,3214.5,1.55377487]
[1768798939463,1.00961627,3215.2,3214.5,1.55377487]
[1768798939652,0.00466316,3215.4,3214.5,1.55377487]
[1768798939852,1.00961652,3215.3,3214.5,1.55377487]
[1768798940059,1.00961652,3215.2,3214.5,1.55377487]
[1768798940259,0.00466316,3215.4,3214.5,1.55377487]
[1768798940462,1.00961849,3215.3,3214.5,1.55377487]
[1768798940761,1.00961849,3215.2,3214.5,1.55377487]
[1768798941065,0.00466316,3215.4,3214.5,1.55377487]
[1768798941266,1.00961832,3215.3,3214.5,1.55377487]
[1768798941453,1.00961832,3215.2,3214.7,1.54911171]
[1768798941655,0.00466316,3215.4,3214.7,1.54911171]
[1768798941966,1.00960125,3215.3,3214.7,1.54911171]
[1768798942164,1.00960125,3215.2,3214.7,1.54911171]
[1768798942367,0.00466316,3215.4,3214.7,1.54911171]
[1768798943166,0.00466316,3215.4,3214.9,1.54911171]
[1768798943975,0.00298476,3215.8,3214.9,1.54911171]
[1768798944269,1.00915036,3215.7,3214.9,1.54911171]
[1768798944469,1.00915036,3215.6,3215.1,1.54911171]
[1768798944663,0.00298476,3215.8,3215.1,1.54911171]
[1768798944868,1.00894056,3215.7,3214.9,1.54911171]
[1768798945071,1.00894056,3215.6,3214.9,1.54911171]